bitfinex-derivatives/quotes_BTCF0:USTF0_20250710
["timestamp","ask_amount","ask_price","bid_price","bid_amount"]
[1752183482514,1.03137,116190.0,116180.0,0.04648]
[1752183482718,0.002,116190.0,116180.0,0.04648]
[1752183483016,0.1907,116190.0,116180.0,0.40728]
[1752183483218,0.1907,116190.0,116180.0,0.40772]
[1752183483614,0.22873,116190.0,116180.0,0.41072]
[1752183484118,0.22873,116190.0,116180.0,0.04992]
[1752183484314,0.22873,116190.0,116180.0,0.04948]
[1752183484912,0.58953,116190.0,116180.0,0.04948]
[1752183485117,0.22917,116190.0,116180.0,0.04948]
[1752183485318,0.23073,116190.0,116180.0,0.04948]
[1752183485621,0.002,116190.0,116180.0,0.75815439]
[1752183485917,0.002,116210.0,116190.0,0.04648]
[1752183486220,0.002,116210.0,116200.0,0.04648]
[1752183486518,0.002,116210.0,116200.0,0.40728]
[1752183486719,0.002,116210.0,116200.0,0.40772]
[1752183486922,0.002,116210.0,116200.0,0.59042]
[1752183487321,0.01801095,116230.0,116210.0,0.04348]
[1752183487622,0.01801095,116230.0,116220.0,0.5425]
[1752183487822,0.01801095,116230.0,116220.0,0.54302]
[1752183488017,0.38371095,116230.0,116220.0,0.00052]
[1752183488217,0.78067534,116230.0,116210.0,0.3608]
[1752183488417,0.1786,116220.0,116210.0,0.3608]
[1752183488622,0.1786,116220.0,116210.0,0.3618]
[1752183488824,0.1786,116220.0,116210.0,0.7226]
[1752183489318,0.1786,116220.0,116210.0,0.7216]
[1752183489522,0.1786,116220.0,116210.0,0.77008]
[1752183489924,0.1786,116220.0,116210.0,0.41028]
[1752183490814,0.1786,116220.0,116210.0,0.58928]
[1752183491420,0.57556439,116220.0,116210.0,0.003]
[1752183491627,0.04609,116210.0,116200.0,0.0017211]
[1752183491827,1.73802439,116210.0,116200.0,0.0017211]
[1752183492020,1.11217639,116210.0,116200.0,0.0017211]
[1752183492215,2.16001639,116210.0,116200.0,0.0017211]
[1752183493128,1.9104964,116210.0,116200.0,0.0027211]
[1752183493320,1.9144964,116210.0,116200.0,0.0027211]
[1752183494628,1.9164964,116210.0,116200.0,0.0027211]
[1752183494821,2.1079964,116210.0,116200.0,0.0027211]
[1752183496521,1.75712201,116210.0,116200.0,0.0027211]
[1752183496728,2.1079964,116210.0,116200.0,0.0027211]
[1752183497025,1.9358844,116210.0,116200.0,0.0027211]
[1752183497424,1.5750844,116210.0,116200.0,0.0027211]
[1752183497624,0.55878001,116210.0,116200.0,0.0492011]
[1752183497829,0.00648001,116210.0,116200.0,0.0492011]
[1752183498030,0.006,116210.0,116200.0,0.4254011]
[1752183498625,0.006,116210.0,116200.0,0.7862011]
[1752183499324,0.006,116210.0,116200.0,0.6005011]
[1752183499524,0.1918,116210.0,116200.0,0.2397011]
[1752183499720,0.1918,116210.0,116200.0,0.6005011]
[1752183500231,0.006,116210.0,116200.0,0.6005011]
[1752183500426,0.006,116210.0,116200.0,0.7911011]
[1752183501131,0.006,116210.0,116200.0,0.4100011]
[1752183501331,0.62943327,116210.0,116200.0,0.4100011]
[1752183501731,0.1918,116210.0,116200.0,0.5887011]
[1752183502025,0.006,116210.0,116200.0,1.38713437]
[1752183503126,0.006,116210.0,116200.0,1.38757437]
[1752183503828,0.006,116210.0,116200.0,1.75128637]
[1752183504026,0.01801095,116230.0,116210.0,0.04618]
[1752183504228,0.002,116250.0,116220.0,1.39701327]
[1752183504431,0.002,116250.0,116240.0,1.20541327]
[1752183504726,0.002,116250.0,116240.0,0.84509327]
[1752183505027,0.002,116250.0,116240.0,1.21319327]
[1752183505432,0.002,116250.0,116240.0,1.20819327]
[1752183506031,0.002,116250.0,116240.0,0.77056]
[1752183506331,0.002,116250.0,116240.0,1.20819327]
[1752183507620,0.002,116250.0,116240.0,1.20319327]
[1752183508029,0.002,116250.0,116240.0,1.20519327]
[1752183508229,0.04983,116250.0,116240.0,0.22556]
[1752183508428,0.04983,116250.0,116240.0,0.22508]
[1752183508730,0.23843,116250.0,116240.0,0.22508]
[1752183508929,0.42733,116250.0,116240.0,0.58588]
[1752183509527,0.42733,116250.0,116240.0,0.03918]
[1752183510430,0.1906,116250.0,116240.0,0.39998]
[1752183510633,0.002,116250.0,116240.0,0.66071327]
[1752183510828,0.002,116250.0,116240.0,0.84161327]
[1752183511131,0.002,116250.0,116240.0,1.20341327]
[1752183511339,0.002,116250.0,116240.0,2.78741327]
[1752183511633,0.002,116250.0,116240.0,2.78641327]
[1752183511834,0.002,116250.0,116240.0,2.78941327]
[1752183513135,0.002,116250.0,116240.0,2.78985327]
[1752183513329,0.002,116250.0,116240.0,0.40142]
[1752183513535,0.48746327,116250.0,116240.0,0.04062]
[1752183513738,0.48790327,116250.0,116240.0,0.04018]
[1752183513936,0.86130327,116250.0,116240.0,0.04018]
[1752183514135,0.42367,116250.0,116240.0,0.04018]
[1752183514536,0.42367,116250.0,116240.0,0.39798]
[1752183514733,0.42367,116250.0,116240.0,0.03762]
[1752183514932,0.42367,116250.0,116240.0,0.39798]
[1752183515234,0.42367,116250.0,116240.0,0.03762]
[1752183515537,0.86130327,116250.0,116240.0,0.39898]
[1752183515733,0.86130327,116250.0,116240.0,0.39942]
[1752183516834,0.86130327,116250.0,116240.0,0.03862]
[1752183517035,0.86130327,116250.0,116240.0,0.03818]
[1752183517238,0.86130327,116250.0,116240.0,0.03718]
[1752183517538,0.86130327,116250.0,116240.0,0.39798]
[1752183517737,0.86130327,116250.0,116240.0,0.36224]
[1752183517938,1.39415127,116250.0,116240.0,0.00244]
[1752183518142,0.86130327,116250.0,116240.0,0.002]
[1752183518529,1.22210327,116250.0,116240.0,0.002]
[1752183519040,1.22210327,116250.0,116240.0,0.001]
[1752183519740,0.42367,116250.0,116240.0,0.40798]
[1752183519938,0.42367,116250.0,116240.0,0.04718]
[1752183520135,0.42367,116250.0,116240.0,0.23808]
[1752183520335,0.42367,116250.0,116240.0,0.59988]
[1752183520533,0.24137,116250.0,116240.0,0.59988]
[1752183520730,0.1931,116250.0,116240.0,0.59788]
[1752183520930,0.1931,116250.0,116240.0,0.59988]
[1752183521144,0.1951,116250.0,116240.0,0.59988]
[1752183521341,0.1951,116250.0,116240.0,0.60188]
[1752183521744,0.1951,116250.0,116240.0,0.41978]
[1752183521942,0.1931,116250.0,116240.0,0.42078]
[1752183522742,0.1931,116250.0,116240.0,0.78158]
[1752183523141,0.1931,116250.0,116240.0,0.78202]
[1752183523341,0.002,116250.0,116240.0,1.21965327]
[1752183523544,0.00204,116250.0,116240.0,1.21965327]
[1752183523842,0.00204,116250.0,116240.0,0.78202]
[1752183524734,0.19244,116250.0,116240.0,0.78202]
[1752183526146,0.19244,116250.0,116240.0,1.21965327]
[1752183526336,0.19244,116250.0,116240.0,0.78202]
[1752183526537,0.19244,116250.0,116240.0,1.21965327]
[1752183526840,0.19244,116250.0,116240.0,0.60332]
[1752183527054,0.67790327,116250.0,116240.0,0.41242]
[1752183527242,1.65110327,116250.0,116240.0,0.36624]
[1752183527443,1.65110327,116250.0,116240.0,0.005]
[1752183527642,1.65110327,116250.0,116240.0,0.3658]
[1752183528141,1.65110327,116250.0,116240.0,0.004]
[1752183528343,1.65110327,116250.0,116240.0,0.3648]
[1752183528651,1.65110327,116250.0,116240.0,0.3628]
[1752183528838,1.21347,116250.0,116240.0,0.002]
[1752183529747,0.42671,116250.0,116240.0,0.40898]
[1752183529936,0.19288,116250.0,116240.0,0.84705327]
[1752183530141,0.00204,116250.0,116240.0,1.20915327]
[1752183530737,0.00204,116250.0,116240.0,0.77152]
[1752183530944,0.00204,116250.0,116240.0,1.20915327]
[1752183532051,0.01817363,116270.0,116250.0,0.04528]
[1752183532351,0.01817363,116270.0,116260.0,1.57251327]
[1752183532552,0.01817363,116270.0,116260.0,1.57295327]
[1752183532940,0.01817363,116270.0,116260.0,1.13532]
[1752183533146,0.20337363,116270.0,116260.0,1.13532]
[1752183533443,0.20337363,116270.0,116260.0,0.59892]
[1752183533444,0.24938363,116270.0,116260.0,0.59892]
[1752183533648,0.24938363,116270.0,116260.0,0.40652]
[1752183533946,0.20637363,116270.0,116260.0,0.40652]
[1752183534147,0.20637363,116270.0,116260.0,0.58782]
[1752183534557,0.01917363,116270.0,116260.0,0.58782]
[1752183534749,0.02017363,116270.0,116260.0,1.20105327]
[1752183535052,0.01917363,116270.0,116260.0,1.20105327]
[1752183535249,0.01917363,116270.0,116260.0,1.37307727]
[1752183535445,0.002,116280.0,116270.0,0.04528]
[1752183535653,0.002,116280.0,116270.0,2.77681327]
[1752183535950,0.02011027,116290.0,116270.0,2.94930127]
[1752183536151,0.02011027,116290.0,116280.0,0.84371327]
[1752183536351,0.02011027,116290.0,116280.0,1.20945327]
[1752183536746,0.02011027,116290.0,116280.0,0.58782]
[1752183537148,0.21101027,116290.0,116280.0,0.58582]
[1752183537548,0.69365354,116290.0,116280.0,0.35924]
[1752183537750,0.69365354,116290.0,116280.0,0.00044]
[1752183537751,0.61726027,116290.0,116280.0,0.00044]
[1752183538048,0.04501,116280.0,116260.0,0.04528]
[1752183538250,0.04501,116270.0,116260.0,0.40608]
[1752183538648,0.22891,116270.0,116260.0,0.40608]
[1752183538853,0.22891,116270.0,116260.0,0.3608]
[1752183539048,0.22891,116270.0,116250.0,0.58788]
[1752183539554,0.22891,116270.0,116260.0,0.004]
[1752183539948,0.04501,116260.0,116240.0,0.0016205]
[1752183540143,1.23770548,116250.0,116240.0,0.0016205]
[1752183540352,1.64351548,116250.0,116240.0,0.0016205]
[1752183540550,2.23956348,116250.0,116210.0,0.58518]
[1752183540751,0.04501,116230.0,116210.0,0.58518]
[1752183540948,0.82701,116230.0,116210.0,0.58518]
[1752183541147,0.82701,116230.0,116220.0,0.3608]
[1752183542152,0.04501,116230.0,116210.0,0.79843327]
[1752183542358,0.01975221,116250.0,116230.0,0.04528]
[1752183542559,0.01975221,116250.0,116240.0,1.33833327]
[1752183542753,0.02075221,116250.0,116240.0,1.13798]
[1752183543162,0.02075221,116250.0,116240.0,0.94642]
[1752183543364,0.02475221,116250.0,116240.0,0.94642]
[1752183543564,0.02475221,116250.0,116240.0,1.13842]
[1752183543958,0.02175221,116250.0,116240.0,1.02425327]
[1752183544460,0.01975221,116250.0,116240.0,0.85405327]
[1752183544759,0.02175221,116250.0,116240.0,1.21485327]
[1752183544964,0.02175221,116250.0,116240.0,1.99589327]
[1752183545265,0.04701,116320.0,116260.0,0.3608]
[1752183545563,0.00244,116320.0,116310.0,0.3608]
[1752183545760,0.002,116320.0,116310.0,2.36011327]
[1752183546968,0.04701,116320.0,116310.0,1.92248]
[1752183547163,0.39714636,116320.0,116310.0,0.00044]
[1752183547467,0.04501,116310.0,116300.0,0.3608]
[1752183547663,0.04501,116310.0,116300.0,0.00044]
[1752183547964,0.04501,116310.0,116300.0,0.3608]
[1752183548165,0.04501,116310.0,116300.0,0.00044]
[1752183548366,0.04501,116310.0,116300.0,0.3608]
[1752183548566,0.04501,116310.0,116300.0,0.36124]
[1752183548762,0.04501,116310.0,116300.0,0.54084]
[1752183549161,0.04501,116310.0,116300.0,0.53994]
[1752183549777,0.04601,116310.0,116300.0,0.18004]
[1752183549972,0.04601,116310.0,116300.0,0.3608]
[1752183550178,0.3638,116320.0,116300.0,0.00044]
[1752183550371,0.36424,116320.0,116290.0,0.3608]
[1752183550572,0.04601,116310.0,116290.0,0.18018]
[1752183550778,0.04601,116310.0,116300.0,0.3608]
[1752183550973,0.04601,116310.0,116300.0,0.36128]
[1752183551168,0.04601,116310.0,116300.0,0.00048]
[1752183551369,0.04501,116310.0,116300.0,0.5405]
[1752183551573,0.04501,116310.0,116300.0,0.54094]
[1752183552271,0.003,116320.0,116300.0,2.26998]
[1752183552473,0.003,116320.0,116310.0,0.90313636]
[1752183552674,0.003,116320.0,116310.0,1.07747636]
[1752183552979,0.003,116320.0,116310.0,0.72734]
[1752183553181,0.002,116320.0,116310.0,0.72734]
[1752183553478,0.04701,116320.0,116310.0,1.33152]
[1752183553673,0.04701,116320.0,116310.0,0.55344]
[1752183553872,0.04701,116320.0,116310.0,0.55644]
[1752183554774,0.04701,116320.0,116310.0,0.55844]
[1752183554968,0.04701,116320.0,116310.0,0.56244]
[1752183555381,0.04701,116320.0,116310.0,0.55844]
[1752183555578,0.04701,116320.0,116310.0,0.56444]
[1752183555882,0.002,116320.0,116310.0,0.56444]
[1752183556483,0.23141,116320.0,116310.0,1.34216]
[1752183557282,0.23141,116320.0,116310.0,1.33916]
[1752183557583,0.002,116320.0,116310.0,1.68929636]
[1752183557781,0.002,116320.0,116310.0,1.86649636]
[1752183558181,0.002,116320.0,116310.0,1.86049636]
[1752183558484,0.002,116320.0,116310.0,1.86349636]
[1752183558671,0.002,116320.0,116310.0,2.03544036]
[1752183558874,0.002,116320.0,116310.0,2.03644036]
[1752183559077,0.002,116320.0,116310.0,2.03444036]
[1752183559281,0.002,116320.0,116310.0,2.03744036]
[1752183559474,0.01960601,116330.0,116310.0,2.03744036]
[1752183559680,0.01960601,116330.0,116320.0,1.07433636]
[1752183559880,0.01960601,116330.0,116320.0,1.07481636]
[1752183561883,0.01960601,116330.0,116320.0,1.07781636]
[1752183562878,0.01960601,116330.0,116320.0,0.72768]
[1752183563084,0.06773601,116330.0,116320.0,0.36428]
[1752183563274,0.06773601,116330.0,116320.0,0.00348]
[1752183563475,0.42333601,116330.0,116320.0,0.3638]
[1752183563784,0.42333601,116330.0,116320.0,0.003]
[1752183563986,0.42333601,116330.0,116320.0,0.7246]
[1752183564179,0.42333601,116330.0,116320.0,0.5492]
[1752183564386,0.24683601,116330.0,116320.0,0.1884]
[1752183564581,0.24683601,116330.0,116320.0,0.5492]
[1752183564781,0.24687601,116330.0,116320.0,0.91]
[1752183564979,0.00204,116330.0,116320.0,1.68200965]
[1752183565178,4e-05,116350.0,116320.0,2.29855329]
[1752183565482,4e-05,116350.0,116330.0,1.07493636]
[1752183565779,0.24027,116350.0,116340.0,0.5442]
[1752183565975,0.24027,116350.0,116340.0,1.31832]
[1752183566175,4e-05,116350.0,116340.0,0.89433636]
[1752183566377,4e-05,116350.0,116340.0,1.07493636]
[1752183566580,4e-05,116350.0,116340.0,1.14521921]
[1752183566777,4e-05,116350.0,116340.0,1.07493636]
[1752183567773,4e-05,116350.0,116340.0,0.7248]
[1752183567974,0.04817,116350.0,116340.0,0.3608]
[1752183568179,0.23747,116350.0,116340.0,0.00044]
[1752183568380,0.23747,116350.0,116340.0,0.3608]
[1752183568583,0.41297,116350.0,116340.0,0.36728]
[1752183568780,0.41341,116350.0,116340.0,0.00648]
[1752183569083,0.41341,116350.0,116330.0,1.32112]
[1752183569278,0.41341,116350.0,116340.0,0.3658]
[1752183569484,0.41341,116350.0,116340.0,0.36624]
[1752183569889,0.41341,116350.0,116340.0,0.36424]
[1752183570188,0.41341,116350.0,116340.0,0.36624]
[1752183570386,0.41341,116350.0,116340.0,1.31894]
[1752183571189,0.41341,116350.0,116340.0,1.31594]
[1752183571389,0.17598,116350.0,116340.0,1.67007636]
[1752183571585,4e-05,116350.0,116340.0,1.85477636]
[1752183571785,4e-05,116350.0,116340.0,1.85777636]
[1752183572691,0.04813,116390.0,116340.0,2.29580555]
[1752183572992,0.42627,116390.0,116380.0,0.7216]
[1752183573191,0.42671,116390.0,116380.0,0.72204]
[1752183573392,0.42627,116390.0,116380.0,0.72204]
[1752183573590,0.77640636,116390.0,116380.0,0.00044]
[1752183573888,1.19824636,116390.0,116370.0,0.3608]
[1752183574088,0.05057,116390.0,116370.0,0.36128]
[1752183574391,0.04813,116380.0,116370.0,0.36128]
[1752183575683,0.04813,116380.0,116370.0,0.36228]
[1752183575881,0.04813,116380.0,116370.0,0.54058]
[1752183576079,0.001,116390.0,116370.0,0.54058]
[1752183576080,0.002,116400.0,116370.0,1.66303636]
[1752183576284,0.05013,116400.0,116390.0,0.35013636]
[1752183576489,0.05013,116400.0,116390.0,0.36124]
[1752183576690,0.05013,116400.0,116390.0,0.54864]
[1752183577087,0.05013,116400.0,116390.0,0.36124]
[1752183577688,0.05013,116400.0,116390.0,0.71137636]
[1752183577689,0.002,116400.0,116390.0,0.71137636]
[1752183577990,0.002,116400.0,116390.0,0.54864]
[1752183578493,0.05013,116400.0,116390.0,0.54864]
[1752183578994,0.05017,116400.0,116390.0,0.54864]
[1752183580391,0.00204,116400.0,116390.0,0.54864]
[1752183581091,0.05017,116400.0,116390.0,0.54864]
[1752183581394,0.05017,116400.0,116390.0,0.36124]
[1752183581599,0.05017,116400.0,116390.0,0.00044]
[1752183581899,0.05017,116400.0,116380.0,0.37739081]
[1752183582198,0.05017,116400.0,116390.0,0.3608]
[1752183582397,0.05017,116400.0,116390.0,0.00044]
[1752183582696,0.05017,116400.0,116380.0,0.37739081]
[1752183582897,0.05017,116400.0,116390.0,0.79695649]
[1752183583288,0.05017,116400.0,116390.0,0.3608]
[1752183584394,0.05017,116400.0,116390.0,0.5436]
[1752183585398,0.05017,116400.0,116390.0,0.3608]
[1752183586094,0.05017,116400.0,116380.0,0.37739081]
[1752183586493,0.04813,116390.0,116380.0,0.37739081]
[1752183586694,0.04813,116390.0,116380.0,0.73863081]
[1752183586997,0.04813,116390.0,116380.0,0.73819081]
[1752183588191,0.04813,116390.0,116380.0,1.1743473]
[1752183588394,0.04813,116390.0,116380.0,1.1767873]
[1752183588593,0.22927,116400.0,116380.0,1.3700873]
[1752183588794,0.22927,116400.0,116390.0,0.3608]
[1752183588993,0.22927,116400.0,116390.0,0.36124]
[1752183590600,0.22927,116400.0,116390.0,0.55654]
[1752183591104,0.22927,116400.0,116390.0,0.55854]
[1752183591498,0.22927,116400.0,116390.0,0.36624]
[1752183592707,0.40767,116400.0,116390.0,0.36624]
[1752183592907,0.40811,116400.0,116390.0,0.36624]
[1752183597107,0.84426649,116400.0,116390.0,0.00544]
[1752183597306,0.84426649,116400.0,116390.0,0.3658]
[1752183597511,0.84426649,116400.0,116390.0,0.00544]
[1752183597708,0.40811,116400.0,116390.0,0.005]
[1752183597911,0.40811,116400.0,116390.0,0.3658]
[1752183598102,0.40811,116400.0,116390.0,0.36624]
[1752183599212,0.05061,116400.0,116390.0,2.33683649]
[1752183599406,0.05017,116400.0,116390.0,2.70623649]
[1752183599803,0.05017,116400.0,116390.0,0.36624]
[1752183600111,0.67482649,116400.0,116390.0,0.36624]
[1752183600309,0.67482649,116400.0,116390.0,0.00544]
[1752183600310,0.6753065,116400.0,116390.0,0.00544]
[1752183600504,0.6753065,116400.0,116360.0,0.00171873]
[1752183600505,1.53866201,116400.0,116360.0,0.00171873]
[1752183600710,0.04799,116380.0,116370.0,0.3608]
[1752183601011,0.48414649,116380.0,116370.0,0.00052]
[1752183601210,0.62219649,116380.0,116360.0,0.55071873]
[1752183601404,0.04799,116370.0,116360.0,0.98731522]
[1752183601606,0.04799,116390.0,116360.0,0.97521522]
[1752183601806,0.04799,116390.0,116380.0,0.7216]
[1752183602008,0.04799,116390.0,116380.0,0.79739649]
[1752183602209,0.04799,116390.0,116380.0,0.36124]
[1752183603213,0.04799,116390.0,116380.0,0.79739649]
[1752183603415,0.48414649,116390.0,116380.0,0.36524]
[1752183603617,0.48458649,116390.0,116380.0,0.36524]
[1752183603813,0.66808649,116390.0,116380.0,0.36524]
[1752183604517,0.66808649,116390.0,116380.0,0.00444]
[1752183604712,0.66808649,116390.0,116380.0,0.006]
[1752183605111,0.66808649,116390.0,116380.0,0.003]
[1752183605413,0.66808649,116390.0,116380.0,0.3638]
[1752183605604,0.86018649,116390.0,116380.0,0.36424]
[1752183605813,0.86018649,116390.0,116380.0,0.36124]
[1752183606113,0.86018649,116390.0,116380.0,0.00144]
[1752183606314,0.86018649,116390.0,116380.0,0.3618]
[1752183606515,0.86018649,116390.0,116380.0,0.36224]
[1752183607116,0.86018649,116390.0,116380.0,0.00144]
[1752183607421,0.86018649,116390.0,116380.0,0.001]
[1752183607610,1.62614649,116390.0,116380.0,0.001]
[1752183608011,0.04843,116390.0,116380.0,0.001]
[1752183608217,0.04799,116390.0,116380.0,0.79795649]
[1752183608416,0.05199,116390.0,116380.0,0.54682]
[1752183608614,0.05199,116390.0,116380.0,0.00152]
[1752183608808,0.22819,116390.0,116380.0,0.3608]
[1752183609017,0.05399,116390.0,116380.0,0.36124]
[1752183609219,0.49014649,116390.0,116380.0,0.36124]
[1752183609417,0.4906265,116390.0,116380.0,0.36124]
[1752183609614,0.8473265,116390.0,116380.0,0.36124]
[1752183609815,0.41117001,116390.0,116380.0,0.36124]
[1752183610116,0.8453265,116390.0,116380.0,0.36124]
[1752183610912,0.23297001,116390.0,116380.0,0.00044]
[1752183611122,0.04999,116390.0,116380.0,1.15819649]
[1752183611412,0.04999,116390.0,116380.0,0.72204]
[1752183611818,0.04999,116390.0,116380.0,0.36124]
[1752183612019,0.04999,116390.0,116380.0,0.00044]
[1752183612515,0.66094649,116390.0,116380.0,0.36128]
[1752183612822,0.40029,116390.0,116380.0,0.3608]
[1752183613217,0.83444649,116390.0,116380.0,0.3618]
[1752183613417,0.39833,116390.0,116380.0,0.3628]
[1752183613807,0.04803,116390.0,116380.0,0.3628]
[1752183614006,0.04803,116390.0,116380.0,0.5374]
[1752183616508,0.04803,116390.0,116380.0,0.7297]
[1752183617019,4e-05,116390.0,116380.0,1.16585649]
[1752183617416,4e-05,116390.0,116380.0,1.16629649]
[1752183617917,0.04803,116390.0,116380.0,1.16629649]
[1752183619019,0.04803,116390.0,116380.0,0.73014]
[1752183620620,4e-05,116390.0,116380.0,1.16629649]
[1752183621033,4e-05,116390.0,116380.0,1.17533606]
[1752183622125,4e-05,116390.0,116380.0,0.73917957]
[1752183622617,4e-05,116390.0,116380.0,1.17533606]
[1752183623618,4e-05,116390.0,116380.0,1.34717606]
[1752183623815,0.00216913,116400.0,116380.0,1.34717606]
[1752183624015,0.00216913,116400.0,116390.0,1.15865649]
[1752183624222,0.00216913,116400.0,116390.0,0.72294]
[1752183624527,0.00216913,116400.0,116390.0,1.15909649]
[1752183624730,0.00216913,116400.0,116390.0,0.72294]
[1752183624930,0.00216913,116400.0,116390.0,0.79829649]
[1752183625123,0.00216913,116400.0,116390.0,1.15909649]
[1752183626228,0.00216913,116400.0,116390.0,1.17670259]
[1752183626930,0.00216913,116400.0,116390.0,1.17770259]
[1752183627124,0.002,116410.0,116390.0,1.17770259]
[1752183627320,0.41025,116440.0,116390.0,1.17770259]
[1752183627321,0.41025,116440.0,116400.0,0.97495649]
[1752183627631,0.04745,116430.0,116410.0,2.51954916]
[1752183627826,0.04745,116430.0,116420.0,0.178]
[1752183628026,0.04745,116430.0,116420.0,0.3537]
[1752183628430,0.59835,116440.0,116420.0,0.3537]
[1752183628630,0.59835,116440.0,116430.0,0.1919]
[1752183629329,0.59835,116440.0,116430.0,0.1879]
[1752183630425,0.002,116440.0,116430.0,0.98485649]
[1752183630631,0.40625,116460.0,116430.0,1.16955649]
[1752183630829,0.55586967,116470.0,116440.0,2.09742]
[1752183631026,0.22485,116470.0,116460.0,0.43615649]
[1752183631225,0.04945,116480.0,116460.0,0.43615649]
[1752183631427,0.002,116480.0,116470.0,2.34891649]
[1752183632027,0.002,116480.0,116470.0,2.34980863]
[1752183632232,0.002,116480.0,116470.0,1.91365214]
[1752183632538,0.002,116480.0,116470.0,2.53822863]
[1752183632726,0.004,116480.0,116470.0,2.53822863]
[1752183633228,0.004,116480.0,116470.0,2.53866863]
[1752183633828,0.002,116490.0,116470.0,3.0291789]
[1752183634033,0.002,116490.0,116480.0,0.97805649]
[1752183634331,0.48560649,116490.0,116480.0,0.00044]
[1752183634525,0.00244,116490.0,116480.0,0.79695649]
[1752183634729,0.002,116490.0,116480.0,1.15593649]
[1752183635228,0.002,116490.0,116480.0,1.33063249]
[1752183635429,0.00694153,116510.0,116480.0,1.59712832]
[1752183635632,0.00694153,116510.0,116500.0,1.15775649]
[1752183635836,0.00694153,116510.0,116500.0,2.29195343]
[1752183636032,0.002,116530.0,116500.0,4.0222654]
[1752183636331,0.002,116530.0,116520.0,1.15775649]
[1752183636533,0.06509367,116550.0,116520.0,1.32983649]
[1752183636733,0.01764367,116550.0,116540.0,0.7216]
[1752183636929,0.01764367,116550.0,116540.0,1.15819649]
[1752183637125,0.01764367,116550.0,116540.0,1.264648]
[1752183637325,0.002,116560.0,116540.0,1.71685199]
[1752183637532,0.1848,116570.0,116540.0,1.71685199]
[1752183637533,0.002,116570.0,116550.0,1.60411298]
[1752183637738,0.002,116570.0,116560.0,1.92936]
[1752183638033,0.002,116570.0,116560.0,2.56312893]
[1752183638226,0.002,116570.0,116560.0,2.31077244]
[1752183638532,0.002,116570.0,116560.0,2.91850493]
[1752183638726,0.002,116570.0,116560.0,2.48234844]
[1752183638934,0.5,116590.0,116560.0,3.16850493]
[1752183639128,0.5,116590.0,116580.0,0.3608]
[1752183639334,0.5,116590.0,116580.0,0.37706299]
[1752183639536,0.00094153,116640.0,116580.0,1.86017597]
[1752183639727,0.00094153,116640.0,116630.0,0.3608]
[1752183639927,0.002,116650.0,116630.0,1.44409896]
[1752183640232,0.1,116700.0,116640.0,0.72270835]
[1752183640433,0.1,116700.0,116690.0,0.3608]
[1752183640826,0.002,116720.0,116690.0,0.782184]
[1752183641030,0.002,116720.0,116710.0,0.7216]
[1752183641230,0.00894153,116730.0,116710.0,1.9959731]
[1752183641432,0.002,116760.0,116720.0,0.37700817]
[1752183641630,0.002,116760.0,116750.0,0.3608]
[1752183641837,0.3608,116790.0,116750.0,0.36967079]
[1752183642042,0.3628,116800.0,116780.0,0.3608]
[1752183642240,0.23235,116830.0,116790.0,0.3608]
[1752183642241,0.51085,116830.0,116790.0,0.3608]
[1752183642428,0.002,116820.0,116810.0,0.40616]
[1752183642631,0.002,116840.0,116810.0,0.04536]
[1752183642932,0.002,116840.0,116820.0,0.04536]
[1752183643132,0.002,116840.0,116810.0,0.40616]
[1752183643351,0.002,116820.0,116810.0,0.40616]
[1752183643542,0.002,116820.0,116810.0,0.00044]
[1752183643836,0.002,116820.0,116800.0,0.04720083]
[1752183644033,0.002,116840.0,116820.0,0.04536]
[1752183644230,0.002,116840.0,116830.0,0.04536]
[1752183644431,0.04745,116820.0,116810.0,0.3608]
[1752183644635,0.36236,116820.0,116800.0,0.00184083]
[1752183644835,0.00156,116810.0,116800.0,0.00171226]
[1752183645037,0.00156,116810.0,116800.0,0.36251226]
[1752183645335,0.3608,116830.0,116810.0,0.04536]
[1752183645537,0.36612001,116830.0,116810.0,0.04536]
[1752183645737,0.36612001,116830.0,116800.0,0.00184083]
[1752183645738,0.04745,116810.0,116800.0,0.00184083]
[1752183645936,0.39667526,116810.0,116800.0,0.00184083]
[1752183646242,0.41513001,116810.0,116800.0,0.00184083]
[1752183646438,0.41513001,116810.0,116770.0,0.37684747]
[1752183646439,1.13500927,116810.0,116770.0,0.42220747]
[1752183646645,0.00156,116780.0,116770.0,0.01648747]
[1752183646935,0.00156,116770.0,116750.0,0.37685004]
[1752183647135,0.34922526,116760.0,116750.0,0.37729004]
[1752183647340,0.00208001,116760.0,116750.0,0.37729004]
[1752183647534,0.70846526,116800.0,116750.0,0.37729004]
[1752183647741,0.36132001,116800.0,116770.0,0.3608]
[1752183648040,0.3608,116790.0,116770.0,0.00044]
[1752183648241,0.002,116770.0,116720.0,0.37893718]
[1752183648536,0.34766526,116730.0,116720.0,0.37893718]
[1752183648737,0.04745,116730.0,116720.0,0.37893718]
[1752183649238,0.39511526,116730.0,116720.0,0.37893718]
[1752183649442,0.04745,116730.0,116720.0,0.36251343]
[1752183649636,0.3608,116740.0,116720.0,0.36251343]
[1752183649838,0.04745,116740.0,116730.0,0.3608]
[1752183650137,0.3628,116770.0,116730.0,0.04536]
[1752183650338,0.34766526,116740.0,116720.0,0.36251343]
[1752183650549,0.39511526,116730.0,116720.0,0.00171343]
[1752183650741,0.39575526,116730.0,116720.0,0.00171343]
[1752183651040,0.40889,116730.0,116720.0,0.00171343]
[1752183651245,0.75655526,116730.0,116720.0,0.00171343]
[1752183651444,1.12275526,116730.0,116700.0,0.37734004]
[1752183651640,0.39511526,116710.0,116700.0,0.37734004]
[1752183651837,0.04832,116700.0,116680.0,0.01825618]
[1752183652039,0.04832,116680.0,116620.0,0.40841]
[1752183652241,1.05613052,116650.0,116600.0,0.42623031]
[1752183652436,0.34766526,116610.0,116600.0,0.42623031]
[1752183652636,0.39598526,116610.0,116600.0,0.01782031]